fUSD/lending_fUSD_20251123
["ID","MTS","AMOUNT","RATE_DAILY","PERIOD"]
[394741300,1763923838928,-153.0,0.0003294,2]
[394741301,1763923838937,-153.0,0.0003294,2]
[394741302,1763923838946,-311.53201472,0.00033025,68]
[394741303,1763923838956,-166.66,0.0003314,2]
[394741304,1763923838965,-3160.04,0.00034283,38]
[394741305,1763923838974,-201.982,0.00034283,38]
[394741306,1763923838983,-165.31,0.0003448,2]
[394741307,1763923838992,-500.0,0.00034521,2]
[394741308,1763923839001,-865.96,0.00035112,5]
[394741309,1763923839010,-166.66,0.0003592,30]
[394741310,1763923839019,-165.31,0.00036508,2]
[394741311,1763923839028,-166.66,0.00036676,30]
[394741312,1763923839037,-503.53229708,0.00037147,6]
[394741313,1763923839047,-21367.668,0.00037147,2]
[394741314,1763923839056,-3436.0,0.00037247,2]
[394741315,1763923839065,-609.0,0.00037247,2]
[394741316,1763923839075,-576.0,0.00037247,2]
[394741317,1763923839084,-1320.0,0.00037247,2]
[394741318,1763923839094,-1601.0,0.00037247,2]
[394741319,1763923839104,-822.0,0.00037247,2]
[394741320,1763923839114,-1256.0,0.00037247,2]
[394741321,1763923839123,-659.0,0.00037247,2]
[394741322,1763923839132,-2659.0,0.00037247,2]
[394741323,1763923839142,-150.0,0.00037247,2]
[394741324,1763923839152,-150.0,0.00037247,2]
[394741325,1763923839162,-561.0,0.00037247,2]
[394741326,1763923839171,-6497.0,0.00037247,2]
[394741327,1763923839181,-166.66,0.00037432,30]
[394741328,1763923839190,-1003.0,0.000375,12]
[394741329,1763923839199,-1004.0,0.000375,7]
[394741330,1763923839219,-681.27642147,0.00037589,20]
[394741331,1763923839232,-339.0,0.00037671,2]
[394741332,1763923839241,-169.71,0.00037671,2]
[394741333,1763923839251,-169.71,0.00037671,2]
[394741334,1763923839260,-168.93,0.00037671,2]
[394741335,1763923839272,-2600.0,0.00037808,7]
[394741336,1763923839282,-1036.94,0.00038,2]
[394741337,1763923839292,-1000.0,0.00038,16]
[394741338,1763923839301,-1000.0,0.00038,14]
[394741339,1763923839311,-1031.0,0.00038,13]
[394741340,1763923839321,-1000.0,0.00038,12]
[394741341,1763923839330,-500.0,0.00038082,7]
[394741342,1763923839340,-1000.0,0.00038082,7]
[394741343,1763923839349,-2500.0,0.00038146,2]
[394741344,1763923839359,-2198.2953181,0.00038146,2]
[394741345,1763923839369,-503.53229708,0.00038156,6]
[394741346,1763923839379,-5261.66733107,0.00038173,2]
[394741347,1763923839388,-160.55159976,0.00038173,15]
[394741348,1763923839398,-239.5545011,0.00038173,2]
[394741349,1763923839407,-166.66,0.00038188,30]
[394741350,1763923839417,-32545.35200225,0.00038246,2]
[394741351,1763923839427,-25544.3199635,0.00038246,3]
[394741352,1763923839436,-237.01452861,0.0003825,2]
[394741353,1763923839446,-578.42048171,0.00038255,15]
[394741354,1763923839456,-500.0,0.00038255,15]
[394741355,1763923839466,-411.17811695,0.00038255,2]
[394741356,1763923839476,-500.0,0.00038255,15]
[394741357,1763923839486,-500.0,0.00038255,15]
[394741358,1763923839495,-500.0,0.00038255,15]
[394741359,1763923839505,-500.0,0.00038255,15]
[394741360,1763923839514,-500.0,0.00038255,15]
[394741361,1763923839524,-500.0,0.00038255,15]
[394741362,1763923839534,-500.0,0.00038255,15]
[394741363,1763923839543,-500.0,0.00038255,15]
[394741364,1763923839553,-500.0,0.00038255,15]
[394741365,1763923839562,-500.0,0.00038255,15]
[394741366,1763923839572,-500.0,0.00038255,15]
[394741367,1763923839582,-500.0,0.00038255,15]
[394741368,1763923839591,-500.0,0.00038255,15]
[394741369,1763923839600,-500.0,0.00038255,15]
[394741370,1763923839610,-500.0,0.00038255,15]
[394741371,1763923839623,-364.29422547,0.00038255,15]
[394741372,1763923839633,-500.0,0.00038255,15]
[394741373,1763923839642,-500.0,0.00038255,15]
[394741374,1763923839652,-500.0,0.00038255,15]
[394741375,1763923839663,-493.72946492,0.00038255,15]
[394741376,1763923839673,-500.0,0.00038255,15]
[394741377,1763923839683,-500.0,0.00038255,15]
[394741378,1763923839696,-500.0,0.00038255,15]
[394741379,1763923839705,-500.0,0.00038255,15]
[394741380,1763923839715,-500.0,0.00038255,15]
[394741381,1763923839725,-500.0,0.00038255,15]
[394741382,1763923839735,-500.0,0.00038255,15]
[394741383,1763923839745,-500.0,0.00038255,15]
[394741384,1763923839754,-500.0,0.00038255,15]
[394741385,1763923839764,-500.0,0.00038255,15]
[394741386,1763923839773,-500.0,0.00038255,15]
[394741387,1763923839783,-500.0,0.00038255,15]
[394741388,1763923839792,-500.0,0.00038255,15]
[394741389,1763923839801,-500.0,0.00038255,15]
[394741390,1763923839810,-500.0,0.00038255,15]
[394741391,1763923839820,-500.0,0.00038255,15]
[394741392,1763923839829,-500.0,0.00038255,15]
[394741393,1763923839838,-500.0,0.00038255,15]
[394741394,1763923839848,-500.0,0.00038255,15]
[394741395,1763923839857,-500.0,0.00038255,15]
[394741396,1763923839867,-500.0,0.00038255,15]
[394741397,1763923839876,-500.0,0.00038255,15]
[394741398,1763923839885,-500.0,0.00038255,15]
[394741399,1763923839895,-500.0,0.00038255,15]
[394741400,1763923839904,-250.0,0.00038255,15]
[394741401,1763923839914,-500.0,0.00038255,15]
[394741402,1763923839924,-500.0,0.00038255,15]
[394741403,1763923839934,-500.0,0.00038255,15]
[394741404,1763923839943,-500.0,0.00038255,8]
[394741405,1763923839953,-500.0,0.00038255,8]
[394741406,1763923839963,-500.0,0.00038255,8]
[394741407,1763923839972,-500.0,0.00038255,8]
[394741408,1763923839982,-500.0,0.00038255,7]
[394741409,1763923839992,-500.0,0.00038255,7]
[394741410,1763923840001,-500.0,0.00038255,7]
[394741411,1763923840011,-500.0,0.00038255,7]
[394741412,1763923840020,-500.0,0.00038255,8]
[394741414,1763923840030,-500.0,0.00038255,8]
[394741415,1763923840039,-500.0,0.00038255,8]
[394741417,1763923840048,-500.0,0.00038255,8]
[394741418,1763923840058,-500.0,0.00038255,8]
[394741419,1763923840067,-500.0,0.00038255,8]
[394741420,1763923840077,-500.0,0.00038255,8]
[394741421,1763923840086,-500.0,0.00038255,8]
[394741422,1763923840096,-199.0,0.00038255,7]
[394741423,1763923840105,-760000.0,0.00038256,2]
[394741424,1763923840115,-500.0,0.00038273,5]
[394741425,1763923840124,-414.63,0.00038274,2]
[394741426,1763923840134,-1419.12888686,0.00038336,3]
[394741427,1763923840143,-2198.29531803,0.00038341,2]
[394741428,1763923840152,-9933.90220802,0.00038346,3]
[394741429,1763923840162,-285.47253644,0.00038346,2]
[394741430,1763923840171,-500.0,0.00038355,8]
[394741431,1763923840181,-500.0,0.00038355,8]
[394741432,1763923840190,-150.0,0.00038355,20]
[394741433,1763923840200,-500.0,0.00038355,7]
[394741434,1763923840209,-500.0,0.00038355,7]
[394741435,1763923840218,-500.0,0.00038355,8]
[394741436,1763923840229,-227.09864709,0.00038355,8]
[394741437,1763923840238,-500.0,0.00038355,8]
[394741438,1763923840248,-500.0,0.00038355,8]
[394741439,1763923840257,-274.17381279,0.00038356,8]
[394741440,1763923840267,-500.0,0.00038356,8]
[394741441,1763923840277,-500.0,0.00038356,8]
[394741442,1763923840286,-500.0,0.00038356,8]
[394741443,1763923840295,-500.0,0.00038356,8]
[394741444,1763923840305,-500.0,0.00038356,8]
[394741445,1763923840314,-500.0,0.00038356,8]
[394741446,1763923840323,-500.0,0.00038356,8]
[394741447,1763923840333,-565.87,0.00038356,8]
[394741448,1763923840342,-500.0,0.00038356,8]
[394741449,1763923840351,-500.0,0.00038356,8]
[394741450,1763923840361,-638.37099735,0.00038356,8]
[394741451,1763923840371,-500.0,0.00038356,8]
[394741452,1763923840380,-500.0,0.00038356,8]
[394741453,1763923840389,-500.0,0.00038356,8]
[394741454,1763923840399,-500.0,0.00038356,8]
[394741455,1763923840408,-500.0,0.00038356,8]
[394741456,1763923840418,-500.0,0.00038356,8]
[394741457,1763923840427,-546.66,0.00038356,8]
[394741458,1763923840437,-500.0,0.00038356,8]
[394741459,1763923840447,-500.0,0.00038356,8]
[394741460,1763923840456,-500.56,0.00038356,8]
[394741461,1763923840466,-500.0,0.00038356,8]
[394741462,1763923840476,-500.0,0.00038356,8]
[394741463,1763923840486,-500.0,0.00038356,8]
[394741464,1763923840495,-500.0,0.00038356,8]
[394741465,1763923840506,-500.0,0.00038356,8]
[394741466,1763923840516,-500.0,0.00038356,8]
[394741467,1763923840526,-500.0,0.00038356,8]
[394741468,1763923840536,-506.09,0.00038356,8]
[394741469,1763923840548,-500.0,0.00038356,8]
[394741470,1763923840559,-500.0,0.00038356,8]
[394741471,1763923840568,-791.81,0.00038356,8]
[394741472,1763923840578,-500.0,0.00038356,8]
[394741473,1763923840587,-500.0,0.00038356,8]
[394741474,1763923840596,-500.0,0.00038356,8]
[394741475,1763923840606,-500.0,0.00038356,8]
[394741476,1763923840619,-500.0,0.00038356,8]
[394741477,1763923840629,-500.0,0.00038356,8]
[394741478,1763923840638,-500.0,0.00038356,8]
[394741479,1763923840648,-500.0,0.00038356,8]
[394741480,1763923840658,-500.0,0.00038356,8]
[394741481,1763923840667,-500.0,0.00038356,8]
[394741482,1763923840677,-500.0,0.00038356,8]
[394741483,1763923840686,-500.0,0.00038356,8]
[394741484,1763923840697,-581.2,0.00038356,8]
[394741485,1763923840707,-500.0,0.00038356,8]
[394741486,1763923840717,-500.0,0.00038356,8]
[394741487,1763923840726,-519.04,0.00038356,8]
[394741488,1763923840735,-569.19,0.00038356,8]
[394741489,1763923840744,-500.0,0.00038356,8]
[394741490,1763923840754,-500.0,0.00038356,8]
[394741491,1763923840763,-500.0,0.00038356,8]
[394741492,1763923840772,-841.49,0.00038356,8]
[394741493,1763923840782,-500.0,0.00038356,8]
[394741494,1763923840791,-500.0,0.00038356,8]
[394741495,1763923840801,-500.0,0.00038356,8]
[394741496,1763923840811,-500.0,0.00038356,8]
[394741497,1763923840820,-505.39,0.00038356,8]
[394741498,1763923840829,-532.1,0.00038356,8]
[394741499,1763923840838,-500.0,0.00038356,8]
[394741500,1763923840848,-500.0,0.00038356,8]
[394741501,1763923840857,-500.0,0.00038356,8]
[394741502,1763923840866,-679.05,0.00038356,8]
[394741503,1763923840875,-544.69,0.00038356,8]
[394741504,1763923840885,-500.0,0.00038356,8]
[394741505,1763923841257,-500.0,0.00038356,8]
[394741506,1763923841267,-500.0,0.00038356,8]
[394741507,1763923841277,-898.23,0.00038356,8]
[394741508,1763923841286,-500.0,0.00038356,8]
[394741509,1763923841295,-721.42,0.00038356,8]
[394741510,1763923841307,-359.50539477,0.00038356,8]
[394741511,1763923841317,-500.0,0.00038356,8]
[394741512,1763923841327,-500.0,0.00038356,8]
[394741513,1763923841336,-500.0,0.00038356,8]
[394741514,1763923841345,-336.47891306,0.00038356,8]
[394741515,1763923841354,-500.0,0.00038356,8]
[394741516,1763923841363,-500.0,0.00038356,8]
[394741517,1763923841373,-500.0,0.00038356,8]
[394741518,1763923841382,-567.18,0.00038356,8]
[394741519,1763923841391,-500.0,0.00038356,8]
[394741520,1763923841401,-832.11,0.00038356,8]
[394741521,1763923841411,-500.0,0.00038356,8]
[394741522,1763923841420,-500.0,0.00038356,8]
[394741523,1763923841430,-647.81,0.00038356,8]
[394741524,1763923841439,-500.0,0.00038356,8]
[394741525,1763923841449,-500.0,0.00038356,8]
[394741526,1763923841458,-500.0,0.00038356,8]
[394741527,1763923841467,-500.0,0.00038356,8]
[394741528,1763923841478,-500.0,0.00038356,8]
[394741529,1763923841487,-500.0,0.00038356,8]
[394741530,1763923841497,-500.0,0.00038356,8]
[394741531,1763923841506,-500.0,0.00038356,8]
[394741532,1763923841515,-500.0,0.00038356,8]
[394741533,1763923841525,-500.0,0.00038356,8]
[394741534,1763923841534,-500.0,0.00038356,8]
[394741535,1763923841544,-500.0,0.00038356,8]
[394741536,1763923841553,-1255.24,0.00038356,8]
[394741537,1763923841563,-500.0,0.00038356,8]
[394741538,1763923841572,-505.2,0.00038356,8]
[394741539,1763923841582,-274.96712084,0.00038356,8]
[394741540,1763923841591,-652.66,0.00038356,8]
[394741541,1763923841601,-521.9,0.00038356,8]
[394741542,1763923841611,-500.0,0.00038356,8]
[394741543,1763923841625,-503.34759032,0.00038356,8]
[394741544,1763923841634,-500.0,0.00038356,8]
[394741545,1763923841644,-500.0,0.00038356,8]
[394741546,1763923841655,-685.73,0.00038356,8]
[394741547,1763923841665,-434.87553478,0.00038356,8]
[394741548,1763923841675,-676.85,0.00038356,8]
[394741549,1763923841684,-530.46700135,0.00038356,8]
[394741550,1763923841696,-500.0,0.00038356,8]
[394741551,1763923841705,-209.88935581,0.00038356,8]
[394741552,1763923841715,-500.0,0.00038356,8]
[394741553,1763923841724,-500.0,0.00038356,8]
[394741554,1763923841735,-500.0,0.00038356,8]
[394741555,1763923841744,-500.0,0.00038356,8]
[394741556,1763923841754,-245.17629852,0.00038356,8]
[394741557,1763923841764,-500.0,0.00038356,8]
[394741558,1763923841773,-500.0,0.00038356,8]
[394741559,1763923841783,-500.0,0.00038356,8]
[394741560,1763923841792,-500.0,0.00038356,8]
[394741561,1763923841801,-500.0,0.00038356,8]
[394741562,1763923841810,-500.0,0.00038356,8]
[394741563,1763923841820,-500.0,0.00038356,8]
[394741564,1763923841830,-504.46,0.00038356,8]
[394741565,1763923841840,-500.0,0.00038356,8]
[394741566,1763923841849,-548.75,0.00038356,8]
[394741567,1763923841859,-500.0,0.00038356,8]
[394741568,1763923841868,-500.0,0.00038356,2]
[394741569,1763923841877,-500.0,0.00038356,8]
[394741570,1763923841886,-509.94,0.00038356,8]
[394741571,1763923841897,-500.0,0.00038356,8]
[394741572,1763923841907,-500.0,0.00038356,8]
[394741573,1763923841918,-767.22,0.00038356,8]
[394741574,1763923841928,-500.0,0.00038356,8]
[394741575,1763923841938,-500.0,0.00038356,8]
[394741576,1763923841947,-500.0,0.00038356,8]
[394741577,1763923841956,-500.0,0.00038356,8]
[394741578,1763923841966,-500.0,0.00038356,8]
[394741579,1763923841975,-500.0,0.00038356,8]
[394741580,1763923841985,-500.0,0.00038356,8]
[394741581,1763923841994,-845.48,0.00038356,8]
[394741582,1763923842003,-501.44,0.00038356,8]
[394741583,1763923842012,-500.0,0.00038356,8]
[394741584,1763923842021,-919.13,0.00038356,8]
[394741585,1763923842030,-500.0,0.00038356,8]
[394741586,1763923842040,-500.0,0.00038356,8]
[394741587,1763923842049,-500.0,0.00038356,8]
[394741588,1763923842058,-500.0,0.00038356,8]
[394741589,1763923842068,-500.0,0.00038356,8]
[394741590,1763923842077,-639.53,0.00038356,8]
[394741591,1763923842086,-679.76,0.00038356,2]
[394741592,1763923842096,-500.0,0.00038356,8]
[394741593,1763923842105,-500.0,0.00038356,8]
[394741594,1763923842114,-500.0,0.00038356,8]
[394741595,1763923842124,-500.0,0.00038356,8]
[394741596,1763923842133,-500.0,0.00038356,8]
[394741597,1763923842142,-500.0,0.00038356,8]
[394741598,1763923842151,-500.0,0.00038356,8]
[394741599,1763923842160,-558.75,0.00038356,8]
[394741600,1763923842173,-500.0,0.00038356,8]
[394741601,1763923842183,-527.17,0.00038356,8]
[394741602,1763923842195,-529.52,0.00038356,8]
[394741603,1763923842204,-766.14,0.00038356,8]
[394741604,1763923842214,-500.0,0.00038356,8]
[394741605,1763923842223,-500.0,0.00038356,8]
[394741606,1763923842234,-214.56524991,0.00038356,8]
[394741607,1763923842243,-500.0,0.00038356,8]
[394741608,1763923842253,-421.8053959,0.00038356,8]
[394741609,1763923842262,-500.0,0.00038356,8]
[394741610,1763923842272,-500.0,0.00038356,8]
[394741611,1763923842281,-500.0,0.00038356,8]
[394741612,1763923842290,-500.0,0.00038356,8]
[394741613,1763923842299,-503.02177839,0.00038356,8]
[394741614,1763923842309,-500.0,0.00038356,8]
[394741615,1763923842318,-500.0,0.00038356,8]
[394741616,1763923842328,-273.97013685,0.00038356,8]
[394741617,1763923842352,-226.02986315,0.00038356,8]
[394741618,1763923842361,-500.0,0.00038356,8]
[394741619,1763923842371,-500.0,0.00038356,8]
[394741620,1763923842380,-500.0,0.00038356,8]
[394741621,1763923842389,-500.0,0.00038356,8]
[394741622,1763923842399,-593.32,0.00038356,8]
[394741623,1763923842408,-518.12,0.00038356,8]
[394741624,1763923842417,-500.0,0.00038356,8]
[394741625,1763923842427,-78.81554735,0.00038356,8]
[394741626,1763923842473,-548.32439514,0.00038356,8]
[394741627,1763923842484,-218.73640246,0.00038356,8]
[394741628,1763923842493,-415.5741458,0.00038356,8]
[394741629,1763923842503,-491.1650566,0.00038356,8]
[394741630,1763923842546,-8.8349434,0.00038356,8]
[394741631,1763923842555,-500.0,0.00038356,8]
[394741632,1763923842564,-500.0,0.00038356,8]
[394741633,1763923842573,-500.0,0.00038356,8]
[394741634,1763923842583,-500.0,0.00038356,8]
[394741635,1763923842592,-538.86,0.00038356,8]
[394741636,1763923842602,-500.0,0.00038356,8]
[394741637,1763923842611,-145.2050566,0.00038356,8]
[394741638,1763923842626,-354.7949434,0.00038356,8]
[394741639,1763923842635,-155.2157764,0.00038356,8]
[394741640,1763923842647,-344.7842236,0.00038356,8]
[394741641,1763923842658,-500.0,0.00038356,8]
[394741642,1763923842667,-500.0,0.00038356,8]
[394741643,1763923842676,-318.90008835,0.00038356,8]
[394741644,1763923843081,-298.28,0.00037247,2]
[394741645,1763923843090,-181.09991165,0.00038356,8]
[394741646,1763923843100,-500.0,0.00038356,8]
[394741648,1763923843108,-642.35,0.00038356,8]
[394741650,1763923843118,-500.0,0.00038356,8]
[394741651,1763923843127,-4.27008835,0.00038356,8]
[394741652,1763923843138,-495.72991165,0.00038356,8]
[394741653,1763923843147,-500.0,0.00038356,8]
[394741654,1763923843157,-500.0,0.00038356,8]
[394741655,1763923843166,-244.50336836,0.00038356,8]
[394741656,1763923843178,-255.49663164,0.00038356,8]
[394741657,1763923843187,-501.24910763,0.00038356,8]
[394741658,1763923843203,-268.85089237,0.00038356,8]
[394741659,1763923843212,-500.0,0.00038356,8]
[394741660,1763923843221,-500.0,0.00038356,8]
[394741661,1763923843231,-500.0,0.00038356,8]
[394741662,1763923843240,-500.0,0.00038356,8]
[394741663,1763923843250,-500.0,0.00038356,8]
[394741664,1763923843259,-500.0,0.00038356,8]
[394741665,1763923843268,-500.0,0.00038356,8]
[394741666,1763923843277,-500.0,0.00038356,8]
[394741667,1763923843287,-500.0,0.00038356,8]
[394741668,1763923843296,-587.76,0.00038356,8]
[394741669,1763923843306,-500.0,0.00038356,8]
[394741670,1763923843315,-500.0,0.00038356,8]
[394741671,1763923843325,-500.0,0.00038356,8]
[394741672,1763923843334,-500.0,0.00038356,8]
[394741673,1763923843343,-500.0,0.00038356,8]
[394741674,1763923843352,-500.0,0.00038356,8]
[394741675,1763923843362,-500.0,0.00038356,8]
[394741676,1763923843370,-500.0,0.00038356,8]
[394741677,1763923843379,-652.3,0.00038356,8]
[394741678,1763923843389,-500.0,0.00038356,8]
[394741679,1763923843398,-500.0,0.00038356,8]
[394741680,1763923843407,-677.24,0.00038356,8]
[394741681,1763923843417,-500.0,0.00038356,8]
[394741682,1763923843426,-500.0,0.00038356,8]
[394741683,1763923843436,-500.0,0.00038356,8]
[394741684,1763923843445,-520.63,0.00038356,8]
[394741685,1763923843455,-500.0,0.00038356,8]
[394741686,1763923843464,-500.0,0.00038356,8]
[394741687,1763923843473,-500.0,0.00038356,8]
[394741688,1763923843483,-976.37,0.00038356,8]
[394741689,1763923843560,-500.0,0.00038356,8]
[394741690,1763923843570,-500.0,0.00038356,8]
[394741691,1763923843580,-774.08,0.00038356,8]
[394741692,1763923843590,-500.0,0.00038356,8]
[394741693,1763923843599,-613.82,0.00038356,8]
[394741694,1763923843609,-500.0,0.00038356,8]
[394741695,1763923843622,-682.8,0.00038356,8]
[394741696,1763923843631,-500.0,0.00038356,8]
[394741697,1763923843642,-500.0,0.00038356,8]
[394741698,1763923843651,-500.0,0.00038356,8]
[394741699,1763923843661,-500.0,0.00038356,8]
[394741700,1763923843670,-500.0,0.00038356,8]
[394741701,1763923843679,-500.0,0.00038356,8]
[394741702,1763923843689,-500.0,0.00038356,8]
[394741703,1763923843699,-508.57,0.00038356,8]
[394741704,1763923843708,-550.88,0.00038356,8]
[394741705,1763923843717,-500.0,0.00038356,8]
[394741706,1763923843728,-500.0,0.00038356,8]
[394741707,1763923843737,-231.31911505,0.00038356,8]
[394741708,1763923843746,-500.0,0.00038356,8]
[394741709,1763923843756,-500.0,0.00038356,8]
[394741710,1763923843765,-586.06677371,0.00038356,8]
[394741711,1763923843774,-300.0,0.00038356,2]
[394741712,1763923843783,-500.0,0.00038356,8]
[394741713,1763923843792,-500.0,0.00038356,8]
[394741714,1763923843802,-744.37,0.00038356,8]
[394741715,1763923843811,-500.0,0.00038356,8]
[394741716,1763923843820,-500.0,0.00038356,8]
[394741717,1763923843829,-500.0,0.00038356,8]
[394741718,1763923843838,-500.0,0.00038356,8]
[394741719,1763923843848,-618.98,0.00038356,8]
[394741720,1763923843857,-500.0,0.00038356,8]
[394741721,1763923843867,-500.0,0.00038356,8]
[394741722,1763923843876,-500.0,0.00038356,8]
[394741723,1763923843885,-500.0,0.00038356,8]
[394741724,1763923843895,-176.59929452,0.00038356,8]
[394741725,1763923843905,-500.0,0.00038356,8]
[394741726,1763923843914,-500.0,0.00038356,8]
[394741727,1763923843923,-500.0,0.00038356,8]
[394741728,1763923843932,-671.2,0.00038356,8]
[394741729,1763923843941,-500.0,0.00038356,8]
[394741730,1763923843951,-500.0,0.00038356,8]
[394741731,1763923843961,-500.0,0.00038356,8]
[394741732,1763923843971,-500.0,0.00038356,8]
[394741733,1763923843981,-500.0,0.00038356,8]
[394741734,1763923843991,-500.0,0.00038356,8]
[394741735,1763923844001,-500.0,0.00038356,8]
[394741736,1763923844010,-500.0,0.00038356,8]
[394741737,1763923844020,-500.0,0.00038356,8]
[394741738,1763923844029,-500.0,0.00038356,8]
[394741739,1763923844039,-620.21,0.00038356,8]
[394741740,1763923844049,-500.0,0.00038356,8]
[394741741,1763923844059,-500.0,0.00038356,8]
[394741742,1763923844068,-500.0,0.00038356,8]
[394741743,1763923844077,-500.0,0.00038356,8]
[394741744,1763923844087,-500.0,0.00038356,8]
[394741745,1763923844097,-500.0,0.00038356,8]
[394741746,1763923844106,-500.0,0.00038356,8]
[394741747,1763923844116,-513.45052745,0.00038356,8]
[394741748,1763923844125,-500.0,0.00038356,8]
[394741749,1763923844135,-500.0,0.00038356,8]
[394741750,1763923844144,-500.0,0.00038356,8]
[394741751,1763923844153,-500.0,0.00038356,8]
[394741752,1763923844163,-820.08,0.00038356,8]
[394741753,1763923844172,-158.76488763,0.00038356,8]
[394741754,1763923844182,-500.0,0.00038356,8]
[394741755,1763923844192,-500.0,0.00038356,8]
[394741756,1763923844202,-500.0,0.00038356,8]
[394741757,1763923844212,-500.0,0.00038356,8]
[394741758,1763923844221,-500.0,0.00038356,8]
[394741759,1763923844231,-589.45,0.00038356,8]
[394741760,1763923844240,-212.16303776,0.00038356,8]
[394741761,1763923844250,-742.91,0.00038356,8]
[394741762,1763923844259,-500.0,0.00038356,8]
[394741763,1763923844269,-500.0,0.00038356,8]
[394741764,1763923844278,-500.0,0.00038356,8]
[394741765,1763923844291,-500.0,0.00038356,8]
[394741766,1763923844300,-500.0,0.00038356,8]
[394741767,1763923844310,-500.0,0.00038356,8]
[394741768,1763923844319,-500.0,0.00038356,8]
[394741769,1763923844328,-500.0,0.00038356,8]
[394741770,1763923844338,-500.0,0.00038356,8]
[394741771,1763923844348,-500.0,0.00038356,8]
[394741772,1763923844358,-500.0,0.00038356,8]
[394741773,1763923844367,-500.0,0.00038356,8]
[394741774,1763923844377,-500.0,0.00038356,8]
[394741775,1763923844387,-500.0,0.00038356,8]
[394741776,1763923844396,-500.0,0.00038356,8]
[394741777,1763923844406,-500.0,0.00038356,8]
[394741778,1763923844415,-500.0,0.00038356,8]
[394741779,1763923844425,-506.74,0.00038356,8]
[394741780,1763923844435,-500.0,0.00038356,8]
[394741781,1763923844445,-500.0,0.00038356,8]
[394741782,1763923844454,-500.0,0.00038356,8]
[394741783,1763923844464,-526.09,0.00038356,8]
[394741784,1763923844474,-500.0,0.00038356,8]
[394741785,1763923844484,-500.0,0.00038356,8]
[394741786,1763923844494,-500.0,0.00038356,8]
[394741787,1763923844504,-500.0,0.00038356,8]
[394741788,1763923844514,-500.0,0.00038356,8]
[394741789,1763923844523,-500.0,0.00038356,8]
[394741790,1763923844532,-500.0,0.00038356,8]
[394741791,1763923844543,-500.0,0.00038356,8]
[394741792,1763923844553,-500.0,0.00038356,8]
[394741793,1763923844562,-550.31,0.00038356,8]
[394741794,1763923844572,-500.0,0.00038356,8]
[394741795,1763923844582,-500.0,0.00038356,8]
[394741796,1763923844591,-500.0,0.00038356,8]
[394741797,1763923844601,-500.0,0.00038356,8]
[394741798,1763923844611,-500.0,0.00038356,8]
[394741799,1763923844623,-500.0,0.00038356,8]
[394741800,1763923844633,-500.0,0.00038356,8]
[394741801,1763923844642,-500.0,0.00038356,8]
[394741802,1763923844652,-500.0,0.00038356,8]
[394741803,1763923844663,-500.0,0.00038356,8]